bitfinex/quotes_ETHUSD_20250403
["timestamp","ask_amount","ask_price","bid_price","bid_amount"]
[1743682539168,5.56845,1795.9,1795.6,0.637237]
[1743682539345,5.56845,1795.9,1795.5,0.858587]
[1743682539751,11.13682,1795.9,1795.5,0.8029]
[1743682540481,5.5684,1795.9,1795.5,0.05568703]
[1743682540694,5.56928,1795.6,1795.4,3.17433121]
[1743682540993,5.56928,1795.6,1795.4,2.40473121]
[1743682541140,5.56947,1795.5,1795.4,2.40473121]
[1743682545046,5.57009,1795.3,1795.2,1.1]
[1743682546040,5.56992,1795.4,1795.2,1.1]
[1743682546263,5.56953,1795.5,1795.2,1.1]
[1743682546570,11.13998,1795.4,1795.2,1.1]
[1743682546773,5.57009,1795.3,1795.2,1.1]
[1743682547155,5.56949,1795.5,1795.2,1.1]
[1743682547479,5.56949,1795.5,1795.2,1.9003]
[1743682547879,6.37596,1795.8,1795.3,0.05570015]
[1743682548079,5.56856,1795.8,1795.4,0.8024]
[1743682548374,5.56856,1795.8,1795.5,0.0556884]
[1743682548576,5.56856,1795.8,1795.4,0.8024]
[1743682548777,11.13727,1795.8,1795.4,0.8024]
[1743682549159,5.5689,1795.7,1795.4,0.8024]
[1743682549968,5.56856,1795.8,1795.4,0.8024]
[1743682550561,5.5683,1795.9,1795.4,0.8580892]
[1743682550747,5.5683,1795.9,1795.4,0.8024]
[1743682550947,3.0,1795.9,1795.4,0.8024]
[1743682551260,11.13747,1795.8,1795.4,0.8024]
[1743682551463,5.56869,1795.8,1795.4,0.8024]
[1743682551998,5.56797,1796.0,1795.4,0.8024]
[1743682552276,5.56797,1796.0,1795.5,0.85628478]
[1743682552455,5.56797,1796.0,1795.5,0.8006]
[1743682553582,3.2077852,1796.0,1795.5,0.85628731]
[1743682553886,5.5691,1795.7,1795.5,0.8006]
[1743682554370,5.56904,1795.7,1795.5,0.8006]
[1743682554570,5.56904,1795.7,1795.3,5.424]
[1743682554772,11.13811,1795.7,1795.3,6.2358]
[1743682555083,11.13811,1795.7,1795.4,0.62358]
[1743682555316,5.56904,1795.7,1795.4,0.62358]
[1743682555497,11.13806,1795.7,1795.4,0.62358]
[1743682556807,5.56924,1795.6,1795.4,0.62358]
[1743682557015,5.5699,1795.4,1795.2,0.55]
[1743682557306,5.57009,1795.3,1795.2,0.55]
[1743682559473,5.5699,1795.4,1795.2,0.55]
[1743682559668,11.13988,1795.4,1795.2,0.55]
[1743682560169,5.57009,1795.3,1795.2,0.55]
[1743682562790,9.37839,1795.3,1795.2,0.55]
[1743682565346,9.37839,1795.3,1795.2,0.52]
[1743682567023,9.37839,1795.3,1795.2,0.52]
[1743682568626,8.57009,1795.3,1795.2,0.52]
[1743682568924,6.17,1795.7,1795.2,0.52]
[1743682568925,5.56886,1795.7,1795.2,1.3386]
[1743682569137,5.56861,1795.8,1795.2,1.3386]
[1743682569341,5.56861,1795.8,1795.4,0.8186]
[1743682569705,5.56927,1795.6,1795.4,0.8186]
[1743682569939,5.56927,1795.6,1795.2,1.2956]
[1743682570150,5.56891,1795.7,1795.2,1.2956]
[1743682570381,17.95523,1796.0,1795.4,0.7756]
[1743682570559,5.56939,1795.6,1795.4,0.7756]
[1743682570921,11.13885,1795.6,1795.4,0.7756]
[1743682571618,5.56947,1795.5,1795.4,0.7756]
[1743682571812,5.56939,1795.6,1795.4,0.7756]
[1743682572248,5.56887,1795.7,1795.4,0.7756]
[1743682572445,3.0,1795.9,1795.5,0.05569162]
[1743682572446,5.56826,1795.9,1795.5,0.05569162]
[1743682572669,5.56826,1795.9,1795.5,0.8089]
[1743682572831,5.56826,1795.9,1795.5,1.446758]
[1743682573213,5.56796,1796.0,1795.5,0.69354587]
[1743682573429,5.56796,1796.0,1795.6,0.787]
[1743682573666,5.56767,1796.1,1795.6,0.787]
[1743682573837,5.56705,1796.3,1795.8,0.787]
[1743682574011,5.5667,1796.4,1795.9,0.787]
[1743682574217,11.13356,1796.4,1795.9,0.787]
[1743682574415,6.34641,1796.6,1795.9,0.787]
[1743682574617,5.56733,1796.2,1795.9,1.4082]
[1743682574863,5.56699,1796.3,1795.9,1.4082]
[1743682575383,5.56673,1796.4,1795.9,6.97642]
[1743682575558,11.13294,1796.5,1796.0,0.05567276]
[1743682575759,11.13294,1796.5,1796.1,0.765]
[1743682575760,5.56639,1796.5,1796.1,0.765]
[1743682576686,5.56611,1796.6,1796.1,0.82066836]
[1743682576991,8.56585,1796.7,1796.2,0.7987]
[1743682577140,5.56562,1796.8,1796.3,0.7987]
[1743682577344,5.56518,1796.9,1796.3,7.06674752]
[1743682577559,11.12988,1797.0,1796.5,0.7987]
[1743682578689,3.0,1797.2,1796.7,0.7564]
[1743682578690,5.56455,1797.1,1796.7,0.7564]
[1743682580485,5.56444,1797.2,1796.7,0.7564]
[1743682580486,0.11202428,1797.0,1796.7,0.7564]
[1743682580646,0.11202428,1797.0,1796.8,0.7921]
[1743682580839,3.0,1797.3,1796.8,0.7921]
[1743682581032,5.56497,1797.0,1796.8,0.7921]
[1743682581471,0.11202428,1796.9,1796.8,0.7921]
[1743682581938,5.67715428,1796.9,1796.8,0.7921]
[1743682585788,0.11202428,1796.9,1796.6,0.7761]
[1743682585950,0.11202428,1796.9,1796.4,0.7761]
[1743682585951,5.56659,1796.5,1796.4,0.7761]
[1743682586156,5.56699,1796.3,1796.2,0.7761]
[1743682586559,5.6888547,1796.3,1796.2,0.7761]
[1743682587287,0.1218647,1796.3,1796.2,0.83177137]
[1743682587498,5.56616,1796.6,1796.2,1.45673898]
[1743682587637,0.11897589,1796.3,1796.2,1.45673898]
[1743682587840,5.56616,1796.6,1796.2,1.45673898]
[1743682588154,0.11897589,1796.5,1796.2,9.51117813]
[1743682588355,5.5658,1796.7,1796.3,0.7761]
[1743682588556,0.11897589,1796.4,1796.3,1.79926142]
[1743682588769,5.5658,1796.7,1796.3,1.79926142]
[1743682588981,0.11897589,1796.4,1796.3,1.79926142]
[1743682589195,5.5658,1796.7,1796.3,1.79926142]
[1743682589354,0.11897589,1796.4,1796.3,0.7761]
[1743682589561,5.56651,1796.5,1796.3,0.7761]
[1743682589883,0.11897589,1796.4,1796.3,0.7761]
[1743682590093,5.56613,1796.6,1796.3,0.7761]
[1743682590412,0.11995948,1796.4,1796.3,0.7761]
[1743682590543,5.56642,1796.5,1796.3,0.7761]
[1743682590745,0.11995948,1796.4,1796.3,0.7761]
[1743682591079,5.68663948,1796.4,1796.3,0.7761]
[1743682591285,5.5673,1796.2,1796.1,0.7985]
[1743682591774,5.56673,1796.4,1796.1,0.7985]
[1743682591974,0.11995948,1796.2,1796.1,0.7985]
[1743682592275,5.56673,1796.4,1796.1,0.7985]
[1743682592454,0.11995948,1796.2,1796.1,0.7985]
[1743682592777,5.56673,1796.4,1796.1,0.7985]
[1743682592972,0.11995948,1796.2,1796.1,0.7985]
[1743682593479,5.56673,1796.4,1796.1,0.7985]
[1743682593645,5.5664,1796.5,1796.1,0.7985]
[1743682593646,5.56718,1796.3,1796.1,0.7985]
[1743682593972,0.11995948,1796.2,1796.1,0.7985]
[1743682594179,5.56673,1796.4,1796.1,0.7985]
[1743682594371,0.11541116,1796.2,1796.1,0.7985]
[1743682594579,5.56673,1796.4,1796.1,0.7985]
[1743682594776,0.11110283,1796.2,1796.1,0.7985]
[1743682594941,5.56673,1796.4,1796.1,0.7985]
[1743682595375,0.11110283,1796.3,1796.1,0.7985]
[1743682595796,5.56644,1796.5,1796.1,0.7985]
[1743682596016,0.11110283,1796.2,1796.1,9.5738952]
[1743682596177,5.56613,1796.6,1796.1,21.27806472]
[1743682596376,5.56613,1796.6,1796.2,0.8155]
[1743682596692,0.11122579,1796.5,1796.2,0.8155]
[1743682597393,5.5667,1796.4,1796.2,0.8155]
[1743682597592,5.67780579,1796.5,1796.2,0.8155]
[1743682597798,0.11141022,1796.3,1796.2,0.8155]
[1743682597970,0.11141022,1796.3,1796.2,1.43915]
[1743682598164,5.56614,1796.6,1796.2,1.43915]
[1743682598361,0.11141022,1796.3,1796.2,6.19095]
[1743682598706,11.13105,1796.8,1796.3,0.7523]
[1743682599377,11.13175,1796.7,1796.3,3.9600852]
[1743682599582,5.56668,1796.4,1795.9,57.58362066]
[1743682599913,5.56598,1796.7,1796.1,0.8046]
[1743682599914,5.56613,1796.6,1796.1,0.8046]
[1743682600071,5.56579,1796.7,1796.2,0.8162]
[1743682600271,5.56608,1796.6,1796.2,0.8162]
[1743682600509,11.1323,1796.6,1796.2,0.8162]
[1743682600714,11.13231,1796.6,1796.2,1.454561]
[1743682601094,5.5664,1796.5,1796.2,1.454561]
[1743682601424,5.5664,1796.5,1796.2,0.8162]
[1743682601425,5.56678,1796.4,1796.2,0.8162]
[1743682601796,11.13231,1796.6,1796.2,0.8162]
[1743682602124,5.56612,1796.6,1796.2,0.8162]
[1743682602298,11.13236,1796.6,1796.2,0.8162]
[1743682602824,5.56583,1796.7,1796.3,0.05566475]
[1743682602997,5.56583,1796.7,1796.3,1.731792]
[1743682603730,5.56583,1796.7,1796.3,1.78745244]
[1743682603928,5.56583,1796.7,1796.3,1.731792]
[1743682604790,5.56643,1796.5,1796.3,1.731792]
[1743682604994,5.56643,1796.5,1796.3,0.7671]
[1743682605703,5.56688,1796.4,1796.1,0.7531]
[1743682605910,5.5673,1796.2,1795.9,45.485]
[1743682606110,5.5673,1796.2,1795.9,46.2381]
[1743682606316,5.567,1796.3,1795.9,46.2381]
[1743682606610,11.13303,1796.5,1796.1,0.8031]
[1743682606834,5.56669,1796.4,1796.1,0.8031]
[1743682607831,5.56644,1796.5,1796.1,4.06655469]
[1743682608007,11.13299,1796.5,1796.1,4.06655469]
[1743682608350,11.13299,1796.5,1796.1,0.8031]
[1743682608504,5.56644,1796.5,1796.1,1.4014605]
[1743682608705,5.5661,1796.6,1796.1,9.3737357]
[1743682609025,5.5661,1796.6,1796.2,0.7998]
[1743682609496,5.5661,1796.6,1796.3,0.05566426]
[1743682609697,11.1317,1796.7,1796.4,0.7998]
[1743682610003,5.56628,1796.6,1796.4,0.7998]
[1743682610243,11.13254,1796.6,1796.4,0.7998]
[1743682610497,5.56626,1796.6,1796.4,0.7998]
[1743682610751,0.11196349,1796.5,1796.4,0.7998]
[1743682611049,5.67833349,1796.5,1796.4,0.7998]
[1743682611209,0.11196349,1796.5,1796.2,0.7966]
[1743682611415,0.11196349,1796.5,1796.0,0.8713699]
[1743682611617,5.56709,1796.3,1796.0,0.8713699]
[1743682611820,5.56709,1796.3,1796.0,0.8157]
[1743682612341,0.11196349,1796.2,1796.0,5.50144358]
[1743682612698,0.11196349,1796.2,1796.0,7.89352878]
[1743682612999,5.56618,1796.6,1796.2,0.7603]
[1743682613634,5.56654,1796.5,1796.2,0.7603]
[1743682614338,5.56612,1796.6,1796.2,0.7603]
[1743682614517,5.56612,1796.6,1796.3,0.05566464]
[1743682614702,5.56582,1796.7,1796.2,0.81596439]
[1743682614903,5.56609,1796.6,1796.2,0.7603]
[1743682615399,5.56639,1796.5,1796.2,0.7603]
[1743682615618,5.56609,1796.6,1796.2,0.7603]
[1743682615853,11.13231,1796.6,1796.2,0.7603]
[1743682616144,5.56641,1796.5,1796.2,1.393082]
[1743682616330,5.56641,1796.5,1796.2,0.7603]
[1743682617553,5.56676,1796.4,1796.2,0.7603]
[1743682617751,5.56699,1796.3,1796.0,6.26407184]
[1743682617932,5.56742,1796.2,1796.0,0.7874]
[1743682623224,5.56742,1796.2,1795.8,0.783]
[1743682623448,5.56742,1796.2,1795.6,43.2717852]
[1743682623449,5.56865,1795.8,1795.7,0.804]
[1743682623758,11.13737,1795.8,1795.6,40.064]
[1743682623965,11.24699715,1795.8,1795.6,40.064]
[1743682624131,5.67827715,1795.8,1795.6,40.064]
[1743682625030,11.24703715,1795.8,1795.6,40.064]
[1743682625580,5.56885,1795.7,1795.6,40.064]
[1743682625789,5.67743166,1795.7,1795.6,40.064]
[1743682631884,0.10858166,1795.7,1795.6,40.064]
[1743682632082,0.10858166,1795.7,1795.6,53.6397452]
[1743682632261,5.56776,1796.1,1795.6,59.0607452]
[1743682632465,5.56776,1796.1,1795.7,0.05568152]
[1743682632768,11.13557,1796.1,1795.6,59.0605952]
[1743682632957,11.13557,1796.1,1795.7,5.60710982]
[1743682633157,11.13557,1796.1,1795.8,0.05567958]
[1743682633380,11.13557,1796.1,1795.7,5.60710982]
[1743682633685,5.56776,1796.1,1795.8,0.05567959]
[1743682633887,6.17,1796.2,1795.9,0.8283]
[1743682634064,5.56703,1796.3,1795.9,0.8283]
[1743682634675,5.56675,1796.4,1795.9,0.8283]
[1743682634676,3.0,1796.4,1795.9,0.8283]
[1743682634986,5.56768,1796.1,1795.9,0.8283]
[1743682636091,11.13418,1796.3,1795.9,0.8283]
[1743682636457,11.13483,1796.2,1795.9,0.8283]
[1743682636688,11.13481,1796.2,1795.9,0.8283]
[1743682636988,5.56703,1796.3,1795.9,0.8283]
[1743682637166,11.13419,1796.3,1795.9,0.8283]
[1743682637577,5.56733,1796.2,1795.9,1.84442777]
[1743682637892,5.56733,1796.2,1795.9,0.8283]
[1743682638061,5.56703,1796.3,1795.9,0.88397626]
[1743682639264,5.56608,1796.6,1796.1,0.7629]
[1743682639459,5.56628,1796.6,1796.1,0.7629]
[1743682639676,11.13257,1796.6,1796.1,6.3305]
[1743682639874,11.13257,1796.6,1796.2,0.63305]
[1743682640275,5.56644,1796.5,1796.2,0.63305]
[1743682640484,5.56644,1796.5,1796.1,0.7629]
[1743682641295,5.5667,1796.4,1796.1,0.7629]
[1743682641664,5.5667,1796.4,1796.1,6.1839]
[1743682642398,11.13356,1796.4,1796.1,6.1839]
[1743682642792,5.5667,1796.4,1796.1,6.1839]
[1743682643094,0.10605943,1796.3,1796.2,0.61839]
[1743682643296,0.10605943,1796.3,1796.2,1.38129]
[1743682643470,11.13239,1796.6,1796.2,1.38129]
[1743682643670,0.10605943,1796.3,1796.2,1.38129]
[1743682643888,11.13239,1796.6,1796.2,1.38129]
[1743682644285,0.10605943,1796.5,1796.2,1.38129]
[1743682645604,5.67251943,1796.5,1796.2,1.38129]
[1743682646492,0.10605943,1796.5,1796.2,1.43695625]
[1743682646691,0.10605943,1796.5,1796.2,1.38129]
[1743682647315,0.10605943,1796.5,1796.2,4.64474022]
[1743682647487,11.13175,1796.7,1796.4,0.7763]
[1743682647810,0.10605943,1796.6,1796.4,0.7763]
[1743682650488,5.56637,1796.5,1796.3,1.21837402]
[1743682650680,0.11116423,1796.4,1796.3,0.7539]
[1743682652892,0.11116423,1796.4,1796.1,6.2178]
[1743682653085,5.56637,1796.5,1796.1,6.2178]
[1743682653309,5.56637,1796.5,1796.1,6.27346947]
[1743682654012,5.56668,1796.4,1796.1,6.27346947]
[1743682654201,5.56668,1796.4,1796.2,0.62734695]
[1743682654404,0.11073389,1796.3,1796.2,0.62734695]
[1743682654712,5.56637,1796.5,1796.2,0.62734695]
[1743682655214,0.11073389,1796.4,1796.2,0.62734695]
[1743682655382,0.11073389,1796.4,1796.2,0.68301212]
[1743682655591,0.11073389,1796.4,1796.3,0.8011]
[1743682655783,0.11073389,1796.4,1796.3,4.71402241]
[1743682655987,11.13117,1796.8,1796.4,0.753]
[1743682656184,5.56553,1796.8,1796.4,0.80865907]
[1743682656418,11.13114,1796.8,1796.4,0.753]
[1743682656614,5.56579,1796.7,1796.4,0.753]
[1743682658338,0.7658,1796.8,1796.4,1.77627024]
[1743682658636,5.56617,1796.6,1796.4,0.753]
[1743682658916,5.56641,1796.5,1796.3,0.70513721]
[1743682659083,5.56641,1796.5,1796.2,1.51051252]
[1743682659285,5.56668,1796.4,1796.0,44.0686852]
[1743682659484,5.56761,1796.1,1796.0,40.062]
[1743682660595,5.56824,1795.9,1795.7,3.2077852]
[1743682660801,5.56824,1795.9,1795.7,0.05568245]
[1743682661030,5.56824,1795.9,1795.7,0.62967825]
[1743682662225,5.56794,1796.0,1795.5,3.2077852]
[1743682662226,5.56792,1796.0,1795.5,3.2077852]
[1743682662448,5.56916,1795.7,1795.4,0.7538]
[1743682662628,11.13829,1795.7,1795.4,0.7538]
[1743682662834,11.13829,1795.7,1795.4,0.80949107]
[1743682663146,5.56964,1795.5,1795.3,40.061]
[1743682663348,5.5689,1795.7,1795.4,4.0061]
[1743682663640,5.5689,1795.7,1795.5,0.7809]
[1743682663833,5.5689,1795.7,1795.4,4.787]
[1743682664034,5.5689,1795.7,1795.5,0.4787]
[1743682665315,11.1386,1795.6,1795.4,4.787]
[1743682665753,5.56916,1795.6,1795.4,4.787]
[1743682665955,5.5689,1795.7,1795.4,4.787]
[1743682667232,5.56845,1795.9,1795.5,0.05569052]
[1743682667451,5.56855,1795.8,1795.5,3.2077852]
[1743682667761,5.56855,1795.8,1795.6,0.32077852]
[1743682668516,11.13727,1795.8,1795.5,3.2077852]
[1743682670348,5.56855,1795.8,1795.5,3.2077852]
[1743682670536,11.13728,1795.8,1795.5,3.2077852]
[1743682671421,5.56855,1795.8,1795.5,3.2077852]
[1743682671723,5.56855,1795.8,1795.5,4.54926372]
[1743682672751,11.13726,1795.8,1795.5,4.54926372]
[1743682673151,5.56893,1795.7,1795.5,1.34147852]
[1743682673351,5.56893,1795.7,1795.4,10.207]
[1743682673554,5.56893,1795.7,1795.4,10.26268946]
[1743682673950,5.56893,1795.7,1795.4,10.207]
[1743682674358,6.3894,1795.8,1795.4,10.2626894]
[1743682674557,6.3894,1795.8,1795.4,10.207]
[1743682674726,5.56887,1795.7,1795.4,10.207]
[1743682675053,11.95824,1795.8,1795.5,1.0207]
[1743682675249,5.56889,1795.7,1795.5,1.0207]
[1743682675965,11.95824,1795.8,1795.5,1.0207]
[1743682676168,5.56923,1795.6,1795.3,40.061]
[1743682676368,5.56953,1795.5,1795.3,40.061]
[1743682676560,11.13869,1795.6,1795.3,40.061]
[1743682676758,11.13869,1795.6,1795.3,44.1421]
[1743682677340,5.56957,1795.5,1795.3,44.1421]
[1743682678143,11.13869,1795.6,1795.3,4.0811]
[1743682678341,11.13869,1795.6,1795.3,0.05569533]
[1743682678745,11.13869,1795.6,1795.2,0.75]
[1743682678972,5.56923,1795.6,1795.3,0.05569535]
[1743682679543,11.1379,1795.7,1795.3,0.05569535]
[1743682679775,11.1379,1795.7,1795.3,3.26348055]
[1743682679965,11.1379,1795.7,1795.3,4.77889761]
[1743682680167,5.56918,1795.6,1795.3,4.77889761]
[1743682680854,11.13852,1795.6,1795.3,4.77889761]
[1743682681057,11.13852,1795.6,1795.3,1.51541706]
[1743682681268,5.5695,1795.5,1795.2,0.75]
[1743682682443,5.5695,1795.5,1795.3,0.05569546]
[1743682682675,11.13849,1795.6,1795.3,0.05569546]
[1743682683046,11.13849,1795.6,1795.2,6.32039]
[1743682683562,11.13849,1795.6,1795.2,6.37608541]
[1743682683753,11.13849,1795.6,1795.3,0.63760854]
[1743682684775,5.56918,1795.6,1795.3,0.63760854]
[1743682690766,6.26403089,1796.5,1795.5,4.0162852]
[1743682690767,0.8054,1796.0,1795.5,4.0162852]
[1743682690966,6.37272,1796.2,1795.8,6.377]
[1743682691167,0.7856,1796.4,1796.0,5.56762]
[1743682691373,5.56647,1796.5,1796.1,0.781]
[1743682691575,11.13301,1796.5,1796.1,0.781]
[1743682692290,5.56498,1797.0,1796.1,0.781]
[1743682692291,6.32882,1797.1,1796.4,0.7688]
[1743682692467,6.32884,1797.1,1796.7,8.7734352]
[1743682692671,5.56483,1797.0,1796.7,4.64173472]
[1743682692868,0.10575225,1797.0,1796.7,4.64173472]
[1743682693068,0.10575225,1797.0,1796.8,6.32931]
[1743682693265,5.56429,1797.2,1796.8,0.764]
[1743682693466,0.11184023,1796.9,1796.8,6.32944]
[1743682693666,5.56429,1797.2,1796.8,7.98311347]
[1743682693862,0.11184023,1796.9,1796.8,2.41767347]
[1743682694064,5.56452,1797.1,1796.8,1.65367347]
[1743682694297,0.11184023,1796.9,1796.7,3.2077852]
[1743682694595,0.11184023,1796.8,1796.7,8.7735152]
[1743682694996,5.56423,1797.2,1796.7,8.7735152]
[1743682695167,5.56423,1797.2,1796.8,5.56537]
[1743682695501,0.11184023,1797.1,1796.8,5.62101691]
[1743682695699,0.11184023,1797.1,1796.8,1.43944521]
[1743682695901,5.56466,1797.1,1796.8,1.43944521]
[1743682696085,0.11184023,1797.0,1796.7,3.2077852]
[1743682696493,0.11184023,1797.0,1796.7,8.7735252]
[1743682697503,11.24174023,1797.0,1796.6,0.831]
[1743682697701,5.67668023,1797.0,1796.6,0.831]
[1743682697884,5.67668023,1797.0,1796.6,2.89013152]
[1743682698084,5.67668023,1797.0,1796.6,8.45617152]
[1743682699005,5.67668023,1797.0,1796.6,2.05913152]
[1743682699306,0.805,1796.9,1796.4,14.7357852]
[1743682699612,5.56487,1797.0,1796.6,8.7738252]
[1743682699909,0.11184023,1796.8,1796.6,8.7738252]
[1743682700085,5.56487,1797.0,1796.7,0.87738252]
[1743682700887,6.35397,1797.1,1796.4,20.3024052]
[1743682700888,5.67700023,1796.9,1796.4,20.3024052]
[1743682701110,5.56582,1796.7,1796.4,11.527]
[1743682701484,5.56582,1796.7,1796.4,6.11]
[1743682701685,0.11565148,1796.6,1796.4,6.11]
[1743682702418,0.11565148,1796.6,1796.5,5.56637]
[1743682702594,5.56514,1796.9,1796.5,13.17782052]
[1743682702789,0.1053378,1796.6,1796.5,13.17782052]
[1743682702993,5.56488,1797.0,1796.6,6.36085]
[1743682703200,5.56488,1797.0,1796.6,9.62428806]
[1743682703406,11.12927,1797.1,1796.6,15.19019806]
[1743682703613,11.12927,1797.1,1796.7,6.93601981]
[1743682704883,6.32266,1797.2,1796.7,12.55732218]
[1743682705089,0.7584,1797.2,1796.7,12.50166981]
[1743682705297,5.56483,1797.0,1796.7,6.93601981]
[1743682705498,0.7584,1797.2,1796.7,5.417]
[1743682705499,3.7584,1797.2,1796.7,5.417]
[1743682706019,5.56544,1796.8,1796.7,5.417]
[1743682706218,5.56483,1797.0,1796.8,0.8094]
[1743682707824,5.56556,1796.8,1796.5,2.87798052]
[1743682708020,5.56578,1796.7,1796.5,2.04508052]
[1743682708885,3.7563,1797.1,1796.5,10.81912572]
[1743682709125,5.56522,1796.9,1796.6,1.08191257]
[1743682709300,11.13054,1796.9,1796.6,1.08191257]
[1743682709500,5.56522,1796.9,1796.6,1.08191257]
[1743682709825,11.12991,1797.0,1796.6,7.43596257]
[1743682710017,5.56525,1796.9,1796.6,1.87001257]
[1743682710225,5.56486,1797.0,1796.6,7.43607257]
[1743682710396,5.56486,1797.0,1796.7,0.79925881]
[1743682710599,5.56486,1797.0,1796.7,0.74360726]
[1743682711510,11.12989,1797.0,1796.7,0.74360726]
[1743682711741,5.56486,1797.0,1796.7,0.74360726]
[1743682713620,5.56458,1797.1,1796.8,0.05564884]
[1743682713926,5.56458,1797.1,1796.8,1.01292397]
[1743682714093,11.12935,1797.1,1796.8,0.95727513]
[1743682714288,5.56458,1797.1,1796.8,0.95727513]
[1743682714493,11.12928,1797.1,1796.8,0.95727513]
[1743682715096,5.56458,1797.1,1796.8,0.95727513]
[1743682715295,11.12925,1797.1,1796.8,0.95727513]
[1743682715903,0.10613678,1797.0,1796.8,0.95727513]
[1743682716132,0.10613678,1797.0,1796.9,0.05564829]
[1743682716336,0.10613678,1797.0,1796.9,2.01202534]
[1743682716538,5.56453,1797.1,1796.9,2.01202534]
[1743682716835,11.12875,1797.2,1796.9,2.01202534]
[1743682718109,5.56426,1797.2,1796.9,2.06766995]
[1743682718530,5.56426,1797.2,1796.9,2.06766996]
[1743682718725,6.33656,1797.3,1796.9,7.63277996]
[1743682718934,11.12805,1797.3,1797.0,0.763278]
[1743682719140,5.56396,1797.3,1797.0,0.763278]
[1743682719462,5.56366,1797.4,1797.0,6.328008]
[1743682719637,11.1274,1797.4,1797.0,6.327988]
[1743682720841,5.56408,1797.3,1797.0,0.763278]
[1743682721340,11.12813,1797.3,1797.0,0.763278]
[1743682722044,5.56427,1797.2,1797.0,0.763278]
[1743682722208,5.56427,1797.2,1796.6,3.96072113]
[1743682722209,5.56514,1796.9,1796.6,3.2077852]
[1743682722408,5.56514,1796.9,1796.4,40.059]
[1743682722409,11.13132,1796.8,1796.5,0.7629]
[1743682723343,5.5656,1796.8,1796.5,0.7629]
[1743682723550,11.93094,1796.9,1796.5,0.7629]
[1743682723937,11.93094,1796.9,1796.5,6.26402252]
[1743682724246,11.93094,1796.9,1796.4,54.2483252]
[1743682724247,0.8003,1796.9,1796.4,40.059]
[1743682724436,5.56576,1796.7,1796.4,40.059]
[1743682724632,5.5655,1796.8,1796.4,45.62567]
[1743682724950,5.56576,1796.7,1796.4,45.62567]
[1743682725125,5.56576,1796.7,1796.4,40.059]
[1743682725331,5.56576,1796.7,1796.5,4.0059]
[1743682726251,5.56606,1796.6,1796.5,4.0059]
[1743682727452,11.13179,1796.7,1796.5,4.0059]
[1743682728652,5.56576,1796.7,1796.5,4.0059]
[1743682728949,11.13181,1796.7,1796.5,4.0059]
[1743682729155,5.56606,1796.6,1796.5,4.0059]
[1743682730953,5.56576,1796.7,1796.5,4.0059]
[1743682731620,5.56547,1796.8,1796.6,0.40059]
[1743682731825,11.13046,1796.9,1796.6,1.21749]
[1743682732457,11.13046,1796.9,1796.6,1.27314367]
[1743682732760,5.56462,1797.1,1796.7,8.7734352]
[1743682732958,11.12934,1797.1,1796.7,8.7734352]
[1743682733119,5.56487,1797.0,1796.8,0.87734352]
[1743682733325,5.56487,1797.0,1796.7,3.2077852]
[1743682733520,5.56487,1797.0,1796.7,8.6217852]
[1743682734262,5.56487,1797.0,1796.7,8.67743559]
[1743682734442,11.12988,1797.0,1796.7,8.67743559]
[1743682734650,11.12988,1797.0,1796.7,8.6217852]
[1743682734838,11.12988,1797.0,1796.8,0.86217852]
[1743682735248,5.56513,1796.9,1796.8,0.86217852]
[1743682735446,5.56586,1796.7,1796.5,5.414]
[1743682735666,11.13177,1796.7,1796.5,5.414]
[1743682735881,5.56586,1796.7,1796.4,44.0289852]
[1743682736082,11.13178,1796.7,1796.5,4.40289852]
[1743682736662,5.56586,1796.7,1796.5,4.40289852]
[1743682736863,5.56586,1796.7,1796.5,4.45855939]
[1743682737161,5.56545,1796.8,1796.5,4.45855939]
[1743682737357,11.13105,1796.8,1796.5,4.40289852]
[1743682737555,11.13105,1796.8,1796.6,0.44028985]
[1743682738073,5.56545,1796.8,1796.6,0.44028985]
[1743682738245,11.13107,1796.8,1796.6,0.44028985]
[1743682738647,5.56575,1796.7,1796.6,0.44028985]
[1743682738953,5.56575,1796.7,1796.5,4.40289852]
[1743682738954,5.56606,1796.6,1796.5,4.40289852]
[1743682739148,5.56606,1796.6,1796.4,40.059]
[1743682739366,5.5673,1796.2,1796.1,0.5215511]
[1743682739562,5.56761,1796.1,1795.9,6.45716651]
[1743682739769,5.56792,1796.0,1795.9,5.9355511]
[1743682740541,5.56792,1796.0,1795.8,0.05567971]
[1743682740744,5.56854,1795.8,1795.7,40.054]
[1743682741176,5.56947,1795.5,1795.4,6.1729]
[1743682741363,5.56947,1795.5,1795.1,9.34996061]
[1743682741364,5.56998,1795.4,1795.2,0.81459481]
[1743682741564,5.57009,1795.3,1795.2,0.7589]
[1743682741951,5.5704,1795.2,1795.1,0.57161541]
[1743682742851,5.57009,1795.3,1795.1,0.05]
[1743682743057,5.57009,1795.3,1795.1,4.99886852]
[1743682744197,6.39674,1795.7,1795.1,10.62517105]
[1743682744489,5.56927,1795.6,1795.2,3.2077852]
[1743682744979,5.56927,1795.6,1795.3,0.81459665]
[1743682745861,11.13863,1795.6,1795.3,0.81459665]
[1743682746192,11.13863,1795.6,1795.3,1.77387184]
[1743682746860,11.13863,1795.6,1795.3,1.71817519]
[1743682747087,5.5689,1795.7,1795.4,3.26348138]
[1743682747390,5.56917,1795.6,1795.4,3.26348138]
[1743682747589,5.56917,1795.6,1795.5,0.32634814]
[1743682747987,6.39568,1796.0,1795.5,0.32634814]
[1743682747988,5.56857,1795.8,1795.5,0.32634814]
[1743682748370,11.1373,1795.8,1795.5,0.32634814]
[1743682748785,5.56857,1795.8,1795.5,0.32634814]
[1743682748982,5.5682,1796.0,1795.7,0.7696]
[1743682749188,11.13546,1796.1,1795.8,3.26346713]
[1743682749459,5.56735,1796.2,1795.9,0.32634671]